[Event "*** Titled Tuesday Blitz"]
[Site "Chess.com"]
[Date "2019.07.02"]
[Round "6"]
[White "swisspower96"]
[Black "Infernal_XaM"]
[Result "1-0"]
[WhiteElo "2738"]
[BlackElo "2868"]
[TimeControl "180+2"]
[EndTime "14:25:54 PDT"]
[Termination "swisspower96 won by resignation"]

1. d4 {[%clk 0:03:01.9]} 1... e6 {[%clk 0:03:00.4]} 2. c4 {[%clk 0:03:01.7]}
2... b6 {[%clk 0:03:01.1]} 3. Nf3 {[%clk 0:03:00.7]} 3... Bb7 {[%clk 0:03:02.2]}
4. g3 {[%clk 0:03:02.2]} 4... f5 {[%clk 0:03:02.8]} 5. Bg2 {[%clk 0:03:02.4]}
5... Bb4+ {[%clk 0:03:00.9]} 6. Bd2 {[%clk 0:02:58]} 6... Bd6 {[%clk 0:03:01.8]}
7. O-O {[%clk 0:02:56.9]} 7... Nf6 {[%clk 0:03:02.6]} 8. Nc3 {[%clk 0:02:48.4]}
8... Na6 {[%clk 0:03:02]} 9. Bg5 {[%clk 0:02:45]} 9... O-O {[%clk 0:03:00.6]}
10. Re1 {[%clk 0:02:43.7]} 10... Be7 {[%clk 0:03:00.1]} 11. Bxf6 {[%clk
0:02:18.1]} 11... Bxf6 {[%clk 0:02:59.3]} 12. e4 {[%clk 0:02:19.4]} 12... fxe4
{[%clk 0:02:55.1]} 13. Nxe4 {[%clk 0:02:20.4]} 13... Bxe4 {[%clk 0:02:56.2]} 14.
Rxe4 {[%clk 0:02:20.9]} 14... c5 {[%clk 0:02:57.4]} 15. Qa4 {[%clk 0:01:56.8]}
15... Nb4 {[%clk 0:02:53.6]} 16. Rd1 {[%clk 0:01:53.5]} 16... Rf7 {[%clk
0:02:34.5]} 17. h4 {[%clk 0:01:15.9]} 17... Qc7 {[%clk 0:02:30.6]} 18. Re2
{[%clk 0:00:54.5]} 18... Raf8 {[%clk 0:02:25.1]} 19. Red2 {[%clk 0:00:51.2]}
19... Nc6 {[%clk 0:02:24.5]} 20. dxc5 {[%clk 0:00:51.7]} 20... bxc5 {[%clk
0:02:24]} 21. a3 {[%clk 0:00:48.3]} 21... Nd4 {[%clk 0:02:22.3]} 22. Nh2 {[%clk
0:00:43.2]} 22... g5 {[%clk 0:01:56.1]} 23. h5 {[%clk 0:00:42.7]} 23... Bg7
{[%clk 0:01:54.1]} 24. b4 {[%clk 0:00:36.7]} 24... h6 {[%clk 0:01:54.6]} 25.
bxc5 {[%clk 0:00:30.6]} 25... Qxc5 {[%clk 0:01:55.2]} 26. Qb4 {[%clk 0:00:32]}
26... Qf5 {[%clk 0:01:39.4]} 27. c5 {[%clk 0:00:27]} 27... a5 {[%clk 0:01:31.9]}
28. Qc4 {[%clk 0:00:27.5]} 28... Rb8 {[%clk 0:01:25.4]} 29. Qd3 {[%clk
0:00:21.6]} 29... Qxd3 {[%clk 0:01:20.9]} 30. Rxd3 {[%clk 0:00:23.1]} 30... Rb2
{[%clk 0:01:19.3]} 31. R3d2 {[%clk 0:00:21.3]} 31... Ne2+ {[%clk 0:01:19.1]} 32.
Kh1 {[%clk 0:00:21.7]} 32... Rxf2 {[%clk 0:01:16.7]} 33. Rxb2 {[%clk 0:00:21.7]}
33... Nxg3+ {[%clk 0:01:14.5]} 34. Kg1 {[%clk 0:00:22.6]} 34... Rxb2 {[%clk
0:01:15.5]} 35. Rxd7 {[%clk 0:00:23.7]} 35... Bd4+ {[%clk 0:01:15]} 36. Rxd4
{[%clk 0:00:22.1]} 36... Ne2+ {[%clk 0:01:16.1]} 37. Kf1 {[%clk 0:00:23]} 37...
Nxd4 {[%clk 0:01:17.6]} 38. Ng4 {[%clk 0:00:24.4]} 38... Kg7 {[%clk 0:01:17.3]}
39. Ne5 {[%clk 0:00:25.6]} 39... Rc2 {[%clk 0:01:18]} 40. c6 {[%clk 0:00:27.4]}
40... Rc5 {[%clk 0:01:13.9]} 41. Nd7 {[%clk 0:00:27]} 41... Rc3 {[%clk
0:01:14.9]} 42. Ne5 {[%clk 0:00:27.8]} 42... Rxa3 {[%clk 0:01:14]} 43. c7 {[%clk
0:00:29.3]} 43... Ra1+ {[%clk 0:01:06]} 44. Kf2 {[%clk 0:00:29.2]} 44... Ra2+
{[%clk 0:01:07.4]} 45. Kg1 {[%clk 0:00:22.4]} 45... Rc2 {[%clk 0:00:35.3]} 46.
Nc6 {[%clk 0:00:22.9]} 46... Ne2+ {[%clk 0:00:35.5]} 47. Kh2 {[%clk 0:00:21.1]}
47... Nf4 {[%clk 0:00:35.5]} 48. c8=Q {[%clk 0:00:21.8]} 48... Rxg2+ {[%clk
0:00:34.7]} 49. Kh1 {[%clk 0:00:23.2]} 49... a4 {[%clk 0:00:35.9]} 50. Qd7+
{[%clk 0:00:24.2]} 50... Kf6 {[%clk 0:00:36.8]} 51. Qd4+ {[%clk 0:00:25.3]}
51... Kf5 {[%clk 0:00:37.6]} 52. Qxa4 {[%clk 0:00:21.2]} 52... Kg4 {[%clk
0:00:37.8]} 53. Qd1+ {[%clk 0:00:21.9]} 53... Kh4 {[%clk 0:00:36.9]} 54. Ne5
{[%clk 0:00:21]} 54... Kh3 {[%clk 0:00:21.7]} 55. Qf3+ {[%clk 0:00:18.7]} 55...
Rg3 {[%clk 0:00:21.8]} 56. Qf1+ {[%clk 0:00:20]} 56... Kh4 {[%clk 0:00:21.8]}
57. Ng6+ {[%clk 0:00:21.2]} 57... Kg4 {[%clk 0:00:23.1]} 58. Qd1+ {[%clk
0:00:18.6]} 58... Kf5 {[%clk 0:00:24.5]} 59. Qc2+ {[%clk 0:00:18.4]} 59... Kg4
{[%clk 0:00:25.5]} 60. Qd1+ {[%clk 0:00:19.6]} 60... Kf5 {[%clk 0:00:26.7]} 61.
Ne7+ {[%clk 0:00:16.9]} 61... Kf6 {[%clk 0:00:27.2]} 62. Nc6 {[%clk 0:00:10.5]}
62... Rh3+ {[%clk 0:00:25.2]} 63. Kg1 {[%clk 0:00:11.9]} 63... Rg3+ {[%clk
0:00:26]} 64. Kf2 {[%clk 0:00:11.8]} 64... Rd3 {[%clk 0:00:26.9]} 65. Qa1+
{[%clk 0:00:11.9]} 65... Kf5 {[%clk 0:00:28.2]} 66. Qb1 {[%clk 0:00:11.5]} 66...
Kf6 {[%clk 0:00:28]} 67. Qb2+ {[%clk 0:00:12.3]} 67... Kf5 {[%clk 0:00:29.4]}
68. Qh8 {[%clk 0:00:12.1]} 68... Rd2+ {[%clk 0:00:28.8]} 69. Ke1 {[%clk
0:00:13.4]} 69... Re2+ {[%clk 0:00:29.1]} 70. Kd1 {[%clk 0:00:14.5]} 70... Kg4
{[%clk 0:00:29.1]} 71. Qxh6 {[%clk 0:00:13.9]} 71... Re3 {[%clk 0:00:27.4]} 72.
Qh8 {[%clk 0:00:10.1]} 72... Nxh5 {[%clk 0:00:28.2]} 73. Ne5+ {[%clk 0:00:11.4]}
73... Kh4 {[%clk 0:00:29.6]} 74. Ng6+ {[%clk 0:00:09.8]} 74... Kg4 {[%clk
0:00:29.6]} 75. Ne5+ {[%clk 0:00:10.6]} 75... Kf5 {[%clk 0:00:27.2]} 76. Nc4
{[%clk 0:00:09.1]} 76... Rd3+ {[%clk 0:00:26.6]} 77. Kc2 {[%clk 0:00:09.9]}
77... Rh3 {[%clk 0:00:26.4]} 78. Nd6+ {[%clk 0:00:08.8]} 78... Kg4 {[%clk
0:00:27.1]} 79. Qe5 {[%clk 0:00:07.9]} 79... Nf4 {[%clk 0:00:26.8]} 80. Ne4
{[%clk 0:00:09.4]} 80... Rh5 {[%clk 0:00:26.2]} 81. Nf6+ {[%clk 0:00:10]} 81...
Kh4 {[%clk 0:00:26.8]} 82. Nxh5 {[%clk 0:00:11.3]} 82... Kxh5 {[%clk 0:00:28.7]}
83. Kd2 {[%clk 0:00:12.3]} 83... Kg4 {[%clk 0:00:30.6]} 84. Ke3 {[%clk
0:00:12.2]} 84... Ng2+ {[%clk 0:00:31.7]} 85. Kf2 {[%clk 0:00:13.2]} 85... Nf4
{[%clk 0:00:33.6]} 86. Qe4 {[%clk 0:00:14.5]} 86... Kh4 {[%clk 0:00:32.9]} 87.
Kf3 {[%clk 0:00:15.4]} 1-0

[Event "*** Titled Tuesday Blitz"]
[Site "Chess.com"]
[Date "2019.07.02"]
[Round "6"]
[White "WorldChampionBulletChess"]
[Black "Colombiano07"]
[Result "1/2-1/2"]
[WhiteElo "2135"]
[BlackElo "2172"]
[TimeControl "180+2"]
[EndTime "14:26:05 PDT"]
[Termination "Game drawn by 50-move rule"]

1. e4 {[%clk 0:03:01.9]} 1... c5 {[%clk 0:03:00.8]} 2. d3 {[%clk 0:03:03.3]}
2... Nf6 {[%clk 0:03:00.7]} 3. g3 {[%clk 0:03:04.8]} 3... e5 {[%clk 0:03:02.1]}
4. Bg2 {[%clk 0:03:05.4]} 4... Be7 {[%clk 0:03:03.8]} 5. Ne2 {[%clk 0:03:06.3]}
5... O-O {[%clk 0:03:05.4]} 6. O-O {[%clk 0:03:07]} 6... d6 {[%clk 0:03:07.1]}
7. Nd2 {[%clk 0:03:08.9]} 7... Nc6 {[%clk 0:03:08.4]} 8. c3 {[%clk 0:03:10.2]}
8... Bg4 {[%clk 0:03:09.6]} 9. f3 {[%clk 0:03:08.5]} 9... Be6 {[%clk 0:03:10.6]}
10. f4 {[%clk 0:03:08]} 10... Qc8 {[%clk 0:03:10.9]} 11. Nf3 {[%clk 0:03:08.6]}
11... Bh3 {[%clk 0:03:11.4]} 12. f5 {[%clk 0:03:07.3]} 12... Bxg2 {[%clk
0:03:12.1]} 13. Kxg2 {[%clk 0:03:09.2]} 13... Ne8 {[%clk 0:03:06.6]} 14. Neg1
{[%clk 0:03:06.2]} 14... Nc7 {[%clk 0:03:07.3]} 15. Ng5 {[%clk 0:03:03.9]} 15...
Bxg5 {[%clk 0:03:07.7]} 16. Bxg5 {[%clk 0:03:05.8]} 16... f6 {[%clk 0:03:09.6]}
17. Be3 {[%clk 0:03:06.1]} 17... b6 {[%clk 0:03:08.4]} 18. Qg4 {[%clk
0:03:07.5]} 18... d5 {[%clk 0:03:08.8]} 19. exd5 {[%clk 0:03:06.2]} 19... Nxd5
{[%clk 0:03:09.6]} 20. Qc4 {[%clk 0:03:06.5]} 20... Rd8 {[%clk 0:03:09.1]} 21.
Bf2 {[%clk 0:03:07]} 21... Kh8 {[%clk 0:03:09.7]} 22. Nf3 {[%clk 0:03:03.9]}
22... Nce7 {[%clk 0:03:09.3]} 23. h4 {[%clk 0:03:01.4]} 23... Nxf5 {[%clk
0:03:09.1]} 24. Qe4 {[%clk 0:02:59.7]} 24... Qd7 {[%clk 0:02:55.6]} 25. Rad1
{[%clk 0:02:46.9]} 25... Nfe7 {[%clk 0:02:51.2]} 26. d4 {[%clk 0:02:34.9]} 26...
cxd4 {[%clk 0:02:50.9]} 27. cxd4 {[%clk 0:02:36.8]} 27... exd4 {[%clk
0:02:46.8]} 28. Rxd4 {[%clk 0:02:35.9]} 28... Qf5 {[%clk 0:02:36.5]} 29. Re1
{[%clk 0:01:54.6]} 29... Qxe4 {[%clk 0:02:35.1]} 30. Rdxe4 {[%clk 0:01:56.5]}
30... Ng8 {[%clk 0:02:33.3]} 31. Nd4 {[%clk 0:01:55]} 31... Rac8 {[%clk
0:02:33.7]} 32. Ne6 {[%clk 0:01:39.3]} 32... Re8 {[%clk 0:02:29.2]} 33. Rd4
{[%clk 0:01:40.1]} 33... Rc6 {[%clk 0:02:11.4]} 34. Rxd5 {[%clk 0:01:26.6]}
34... Rcxe6 {[%clk 0:02:11.9]} 35. Rxe6 {[%clk 0:01:23.3]} 35... Rxe6 {[%clk
0:02:13.8]} 36. Rd7 {[%clk 0:01:24]} 36... Re7 {[%clk 0:02:14.5]} 37. Rd8 {[%clk
0:01:21.6]} 37... g6 {[%clk 0:02:15.3]} 38. Kf3 {[%clk 0:01:21.7]} 38... Kg7
{[%clk 0:02:16.2]} 39. Bd4 {[%clk 0:01:22.2]} 39... Kf7 {[%clk 0:02:15.6]} 40.
a4 {[%clk 0:01:21.6]} 40... f5 {[%clk 0:02:12.4]} 41. b4 {[%clk 0:01:21.6]}
41... Nf6 {[%clk 0:02:12.3]} 42. a5 {[%clk 0:01:17.8]} 42... bxa5 {[%clk
0:01:50.6]} 43. bxa5 {[%clk 0:01:19.7]} 43... a6 {[%clk 0:01:52.1]} 44. Rd6
{[%clk 0:01:13]} 44... Re6 {[%clk 0:01:51]} 45. Rb6 {[%clk 0:01:12.9]} 45... Nd5
{[%clk 0:01:44.4]} 46. Rb7+ {[%clk 0:01:11.1]} 46... Re7 {[%clk 0:01:46.1]} 47.
Rb8 {[%clk 0:01:01.5]} 47... Re4 {[%clk 0:01:38.1]} 48. Rb7+ {[%clk 0:01:00.1]}
48... Ke6 {[%clk 0:01:33.6]} 49. Bc5 {[%clk 0:00:56.9]} 49... Rc4 {[%clk
0:01:30.7]} 50. Bb6 {[%clk 0:00:54.5]} 50... Rc3+ {[%clk 0:01:22.6]} 51. Kg2
{[%clk 0:00:55.2]} 51... h5 {[%clk 0:01:19.7]} 52. Rg7 {[%clk 0:00:48.9]} 52...
f4 {[%clk 0:01:08.9]} 53. Rxg6+ {[%clk 0:00:46.7]} 53... Kf5 {[%clk 0:01:10.4]}
54. Rg5+ {[%clk 0:00:47.3]} 54... Ke4 {[%clk 0:01:12]} 55. gxf4 {[%clk
0:00:42.4]} 55... Nxf4+ {[%clk 0:01:12.9]} 56. Kf1 {[%clk 0:00:33.7]} 56... Kf3
{[%clk 0:01:11.8]} 57. Ke1 {[%clk 0:00:33.8]} 57... Rd3 {[%clk 0:01:01.3]} 58.
Rf5 {[%clk 0:00:30.8]} 58... Rd5 {[%clk 0:00:54.2]} 59. Rf8 {[%clk 0:00:27.1]}
59... Kg4 {[%clk 0:00:46.3]} 60. Bc7 {[%clk 0:00:23.9]} 60... Ng2+ {[%clk
0:00:43.4]} 61. Kf2 {[%clk 0:00:22.1]} 61... Nxh4 {[%clk 0:00:43.7]} 62. Rg8+
{[%clk 0:00:15.3]} 62... Rg5 {[%clk 0:00:34.7]} 63. Ra8 {[%clk 0:00:14.3]} 63...
Rf5+ {[%clk 0:00:32.1]} 64. Kg1 {[%clk 0:00:12.9]} 64... Nf3+ {[%clk 0:00:26.3]}
65. Kg2 {[%clk 0:00:13.7]} 65... h4 {[%clk 0:00:24.9]} 66. Rg8+ {[%clk
0:00:12.7]} 66... Rg5 {[%clk 0:00:25.9]} 67. Rf8 {[%clk 0:00:12.2]} 67... h3+
{[%clk 0:00:26.8]} 68. Kf2 {[%clk 0:00:12.6]} 68... Nd4 {[%clk 0:00:15.9]} 69.
Rf4+ {[%clk 0:00:11.6]} 69... Kh5 {[%clk 0:00:17.5]} 70. Rxd4 {[%clk 0:00:12.8]}
70... h2 {[%clk 0:00:17.3]} 71. Bxh2 {[%clk 0:00:12.9]} 71... Rxa5 {[%clk
0:00:18.4]} 72. Rd2 {[%clk 0:00:10.3]} 72... Kg4 {[%clk 0:00:19.3]} 73. Bg1
{[%clk 0:00:11]} 73... Kf4 {[%clk 0:00:20.2]} 74. Ke2 {[%clk 0:00:12]} 74... Ke4
{[%clk 0:00:21.7]} 75. Rd4+ {[%clk 0:00:12.3]} 75... Ke5 {[%clk 0:00:23.2]} 76.
Kd3 {[%clk 0:00:12.2]} 76... Rd5 {[%clk 0:00:23.5]} 77. Rxd5+ {[%clk 0:00:10.3]}
77... Kxd5 {[%clk 0:00:25.4]} 78. Kc3 {[%clk 0:00:11.4]} 78... a5 {[%clk
0:00:26.2]} 79. Kb3 {[%clk 0:00:12.4]} 79... a4+ {[%clk 0:00:27.3]} 80. Ka2
{[%clk 0:00:12.5]} 80... a3 {[%clk 0:00:26.9]} 81. Be3 {[%clk 0:00:13]} 81...
Ke6 {[%clk 0:00:28.2]} 82. Bc1 {[%clk 0:00:14.5]} 82... Kd7 {[%clk 0:00:30.1]}
83. Bd2 {[%clk 0:00:15.9]} 83... Kc6 {[%clk 0:00:32]} 84. Bc3 {[%clk 0:00:17.5]}
84... Kb7 {[%clk 0:00:33.9]} 85. Bb4 {[%clk 0:00:18.7]} 85... Kc8 {[%clk
0:00:35.8]} 86. Bc5 {[%clk 0:00:19.6]} 86... Kd7 {[%clk 0:00:37.7]} 87. Bd4
{[%clk 0:00:21.1]} 87... Ke8 {[%clk 0:00:39.6]} 88. Bc3 {[%clk 0:00:12.9]} 88...
Kf7 {[%clk 0:00:41.5]} 89. Bb4 {[%clk 0:00:14]} 89... Kg8 {[%clk 0:00:43.4]} 90.
Bc3 {[%clk 0:00:15.9]} 90... Kh7 {[%clk 0:00:45.3]} 91. Bd2 {[%clk 0:00:17.8]}
91... Kg6 {[%clk 0:00:47.2]} 92. Be3 {[%clk 0:00:19.3]} 92... Kf5 {[%clk
0:00:49.1]} 93. Bb6 {[%clk 0:00:21]} 93... Kg4 {[%clk 0:00:51]} 94. Ba5 {[%clk
0:00:22.9]} 94... Kh5 {[%clk 0:00:52.9]} 95. Bb4 {[%clk 0:00:24.4]} 95... Kh4
{[%clk 0:00:54.8]} 96. Bc5 {[%clk 0:00:26.3]} 96... Kh3 {[%clk 0:00:56]} 97. Bb4
{[%clk 0:00:28.2]} 97... Kg2 {[%clk 0:00:57.9]} 98. Ba5 {[%clk 0:00:30.1]} 98...
Kh1 {[%clk 0:00:59.8]} 99. Bb6 {[%clk 0:00:32]} 99... Kg2 {[%clk 0:01:01.7]}
100. Ba7 {[%clk 0:00:33.9]} 100... Kf1 {[%clk 0:01:03.5]} 101. Bb8 {[%clk
0:00:35.8]} 101... Ke2 {[%clk 0:01:05.4]} 102. Bc7 {[%clk 0:00:37.7]} 102... Kd3
{[%clk 0:01:07.3]} 103. Bd6 {[%clk 0:00:39.6]} 103... Kc4 {[%clk 0:01:09.2]}
104. Bc5 {[%clk 0:00:41.5]} 104... Kb5 {[%clk 0:01:11.1]} 105. Be7 {[%clk
0:00:43.4]} 105... Kc6 {[%clk 0:01:12.4]} 106. Bf8 {[%clk 0:00:45.3]} 106... Kd7
{[%clk 0:01:13.7]} 107. Bg7 {[%clk 0:00:47.2]} 107... Kd6 {[%clk 0:01:15.6]}
108. Bh6 {[%clk 0:00:49.1]} 108... Kd5 {[%clk 0:01:17.3]} 109. Bd2 {[%clk
0:00:51]} 109... Kc4 {[%clk 0:01:19.2]} 110. Bc1 {[%clk 0:00:52.9]} 110... Kd3
{[%clk 0:01:20.6]} 111. Bg5 {[%clk 0:00:53.2]} 111... Kc2 {[%clk 0:01:22.5]}
112. Be7 {[%clk 0:00:54.3]} 112... Kd3 {[%clk 0:01:24.4]} 113. Bf6 {[%clk
0:00:56.2]} 113... Kc4 {[%clk 0:01:26.3]} 114. Bg7 {[%clk 0:00:58]} 114... Kb5
{[%clk 0:01:28.2]} 115. Bh8 {[%clk 0:00:59.9]} 115... Kc6 {[%clk 0:01:30.1]}
116. Bg7 {[%clk 0:01:01.8]} 116... Kd7 {[%clk 0:01:32]} 117. Bh6 {[%clk
0:01:03.7]} 117... Ke6 {[%clk 0:01:33.9]} 118. Bg5 {[%clk 0:01:05.6]} 118... Kf7
{[%clk 0:01:35.8]} 119. Bh4 {[%clk 0:01:07.5]} 119... Kg6 {[%clk 0:01:37.7]}
120. Bg3 {[%clk 0:01:09.4]} 120... Kf5 {[%clk 0:01:39.4]} 121. Bf2 {[%clk
0:01:11.3]} 121... Kg4 {[%clk 0:01:41.3]} 122. Be1 {[%clk 0:01:13.2]} 122... Kf3
{[%clk 0:01:43.2]} 123. Bd2 {[%clk 0:01:15.1]} 123... Ke4 {[%clk 0:01:45.1]}
124. Bc3 {[%clk 0:01:17]} 124... Kd3 {[%clk 0:01:47]} 125. Bb4 {[%clk
0:01:18.9]} 125... Kc4 {[%clk 0:01:48.5]} 126. Ba5 {[%clk 0:01:20.3]} 126... Kb5
{[%clk 0:01:50]} 127. Bc7 {[%clk 0:01:22]} 127... Ka4 {[%clk 0:01:51.9]} 128.
Bd8 {[%clk 0:01:23.9]} 128... Kb5 {[%clk 0:01:53.6]} 129. Be7 {[%clk 0:01:25.8]}
129... Kc6 {[%clk 0:01:55.5]} 130. Bf6 {[%clk 0:01:27.7]} 130... Kd6 {[%clk
0:01:57.2]} 1/2-1/2

[Event "*** Titled Tuesday Blitz"]
[Site "Chess.com"]
[Date "2019.07.02"]
[Round "6"]
[White "David_Paravyan"]
[Black "PaulfromSPb"]
[Result "1-0"]
[WhiteElo "2856"]
[BlackElo "2630"]
[TimeControl "180+2"]
[EndTime "14:26:41 PDT"]
[Termination "David_Paravyan won by resignation"]

1. d4 {[%clk 0:03:01.9]} 1... Nf6 {[%clk 0:03:00.4]} 2. c4 {[%clk 0:03:01.8]}
2... e6 {[%clk 0:02:59.6]} 3. Nc3 {[%clk 0:03:00.3]} 3... Bb4 {[%clk 0:02:59.7]}
4. Qc2 {[%clk 0:03:01.9]} 4... O-O {[%clk 0:03:00.4]} 5. a3 {[%clk 0:03:03]}
5... Bxc3+ {[%clk 0:03:01.3]} 6. Qxc3 {[%clk 0:03:04.9]} 6... b6 {[%clk
0:03:02.6]} 7. Bg5 {[%clk 0:03:05.7]} 7... Bb7 {[%clk 0:03:02.4]} 8. Nh3 {[%clk
0:03:07.3]} 8... d5 {[%clk 0:02:57.4]} 9. cxd5 {[%clk 0:03:05.8]} 9... exd5
{[%clk 0:02:53.6]} 10. Qf3 {[%clk 0:03:05.1]} 10... Nbd7 {[%clk 0:02:53.6]} 11.
e3 {[%clk 0:03:03.3]} 11... c5 {[%clk 0:02:54.3]} 12. Bd3 {[%clk 0:03:04.2]}
12... Qe8 {[%clk 0:02:48.8]} 13. O-O {[%clk 0:02:59.7]} 13... Ne4 {[%clk
0:02:48.5]} 14. Bf4 {[%clk 0:02:53.4]} 14... f5 {[%clk 0:02:47.5]} 15. Bxe4
{[%clk 0:02:46.5]} 15... dxe4 {[%clk 0:02:41.3]} 16. Qg3 {[%clk 0:02:45.7]}
16... cxd4 {[%clk 0:02:41.9]} 17. exd4 {[%clk 0:02:47.2]} 17... Nf6 {[%clk
0:02:38]} 18. Be5 {[%clk 0:02:46.9]} 18... Rc8 {[%clk 0:02:28.1]} 19. Rac1
{[%clk 0:02:45]} 19... Qd7 {[%clk 0:02:22.5]} 20. Nf4 {[%clk 0:02:44.2]} 20...
Qf7 {[%clk 0:01:58.7]} 21. h3 {[%clk 0:02:37]} 21... Ba6 {[%clk 0:01:45.3]} 22.
Rfd1 {[%clk 0:02:32.6]} 22... Rfe8 {[%clk 0:01:34.4]} 23. Rxc8 {[%clk
0:02:32.7]} 23... Rxc8 {[%clk 0:01:34.4]} 24. d5 {[%clk 0:02:31.6]} 24... Rd8
{[%clk 0:01:25.4]} 25. Ne6 {[%clk 0:02:25.7]} 25... Rxd5 {[%clk 0:01:16.1]} 26.
Rxd5 {[%clk 0:02:24.2]} 26... Nxd5 {[%clk 0:01:16.9]} 27. Nxg7 {[%clk
0:02:24.1]} 27... Qg6 {[%clk 0:01:09.6]} 28. Nxf5 {[%clk 0:02:24]} 28... Qxg3
{[%clk 0:01:07.5]} 29. Bxg3 {[%clk 0:02:16.2]} 29... Bd3 {[%clk 0:01:06.4]} 30.
Nd6 {[%clk 0:01:56.9]} 30... a5 {[%clk 0:01:01.4]} 31. Be5 {[%clk 0:01:54]}
31... Kf8 {[%clk 0:01:00.7]} 32. Bd4 {[%clk 0:01:54.4]} 32... b5 {[%clk
0:00:59]} 33. Nb7 {[%clk 0:01:55.3]} 33... a4 {[%clk 0:00:59.9]} 34. Kh2 {[%clk
0:01:55.7]} 34... Ke7 {[%clk 0:01:00.3]} 35. Kg3 {[%clk 0:01:54.9]} 35... Ke6
{[%clk 0:01:00.7]} 36. Nc5+ {[%clk 0:01:55.8]} 36... Kf5 {[%clk 0:01:01.6]} 37.
Nxd3 {[%clk 0:01:43.7]} 37... exd3 {[%clk 0:01:02.4]} 38. Kf3 {[%clk 0:01:45.3]}
38... d2 {[%clk 0:00:23.9]} 39. Ke2 {[%clk 0:01:16.2]} 39... Nf4+ {[%clk
0:00:23.4]} 40. Kxd2 {[%clk 0:01:16.6]} 40... Nxg2 {[%clk 0:00:24.5]} 41. Kc3
{[%clk 0:00:38]} 41... Nf4 {[%clk 0:00:24.6]} 42. Kb4 {[%clk 0:00:29.2]} 42...
Ke4 {[%clk 0:00:25.2]} 43. Ba7 {[%clk 0:00:16.7]} 43... Nxh3 {[%clk 0:00:23.1]}
44. Kxb5 {[%clk 0:00:18.1]} 44... h5 {[%clk 0:00:23.9]} 45. Kxa4 {[%clk
0:00:17.7]} 45... h4 {[%clk 0:00:25]} 46. b4 {[%clk 0:00:13.4]} 46... Nf4 {[%clk
0:00:22.2]} 47. b5 {[%clk 0:00:10.9]} 47... h3 {[%clk 0:00:21.4]} 48. b6 {[%clk
0:00:06.4]} 48... h2 {[%clk 0:00:16.5]} 49. b7 {[%clk 0:00:07.7]} 49... h1=Q
{[%clk 0:00:16.7]} 50. b8=Q {[%clk 0:00:09.2]} 50... Qd1+ {[%clk 0:00:15.7]} 51.
Ka5 {[%clk 0:00:08.1]} 51... Nd5 {[%clk 0:00:10.6]} 52. Qe8+ {[%clk 0:00:06.5]}
52... Kd3 {[%clk 0:00:11.7]} 53. Qb5+ {[%clk 0:00:07.4]} 53... Ke4 {[%clk
0:00:10.9]} 54. Qc4+ {[%clk 0:00:07.1]} 54... Ke5 {[%clk 0:00:11.7]} 55. f4+
{[%clk 0:00:07.3]} 55... Kf5 {[%clk 0:00:12.2]} 56. Bd4 {[%clk 0:00:05]} 56...
Nxf4 {[%clk 0:00:12.3]} 57. a4 {[%clk 0:00:04.6]} 57... Qf3 {[%clk 0:00:10.6]}
58. Kb4 {[%clk 0:00:03.3]} 58... Nd5+ {[%clk 0:00:10.8]} 59. Kc5 {[%clk
0:00:04.2]} 59... Nf4 {[%clk 0:00:11.3]} 60. Qf7+ {[%clk 0:00:05.2]} 60... Kg4
{[%clk 0:00:11.1]} 61. Qd7+ {[%clk 0:00:06.8]} 61... Kg5 {[%clk 0:00:10]} 62.
Qg7+ {[%clk 0:00:08.1]} 62... Kf5 {[%clk 0:00:10.9]} 63. Qf6+ {[%clk 0:00:08.9]}
63... Kg4 {[%clk 0:00:11.4]} 64. Qg7+ {[%clk 0:00:10.5]} 64... Kf5 {[%clk
0:00:12.4]} 65. Qf7+ {[%clk 0:00:11.6]} 65... Kg4 {[%clk 0:00:13.5]} 66. Qd7+
{[%clk 0:00:13.2]} 66... Kg5 {[%clk 0:00:14]} 67. Qd8+ {[%clk 0:00:13.3]} 67...
Kg4 {[%clk 0:00:14.7]} 68. Qg8+ {[%clk 0:00:14.9]} 68... Kf5 {[%clk 0:00:15.8]}
69. Kd6 {[%clk 0:00:14.4]} 69... Qd3 {[%clk 0:00:13.4]} 70. Qh7+ {[%clk
0:00:13.6]} 70... Ng6 {[%clk 0:00:14.5]} 71. Qf7+ {[%clk 0:00:10.9]} 71... Kg5
{[%clk 0:00:15.4]} 72. Qd5+ {[%clk 0:00:11.9]} 72... Kg4 {[%clk 0:00:13.9]} 73.
Bb6 {[%clk 0:00:10]} 73... Qa6 {[%clk 0:00:12]} 74. a5 {[%clk 0:00:09.2]} 74...
Nf4 {[%clk 0:00:13.1]} 75. Qc6 {[%clk 0:00:08.1]} 75... Qd3+ {[%clk 0:00:13.1]}
76. Kc7 {[%clk 0:00:09.6]} 76... Qa6 {[%clk 0:00:12.6]} 77. Qd7+ {[%clk
0:00:10.1]} 77... Kf3 {[%clk 0:00:12.7]} 78. Qc6+ {[%clk 0:00:11.7]} 78... Kg4
{[%clk 0:00:13.4]} 79. Kb8 {[%clk 0:00:12.5]} 79... Qd3 {[%clk 0:00:12]} 80. Kb7
{[%clk 0:00:12.4]} 80... Nd5 {[%clk 0:00:10.8]} 81. Qe6+ {[%clk 0:00:10.1]}
81... Kf3 {[%clk 0:00:09.4]} 82. Qh3+ {[%clk 0:00:10.2]} 82... Ke4 {[%clk
0:00:10.1]} 83. Qxd3+ {[%clk 0:00:10.8]} 83... Kxd3 {[%clk 0:00:11.2]} 84. a6
{[%clk 0:00:12.4]} 84... Nb4 {[%clk 0:00:02.9]} 85. a7 {[%clk 0:00:13.2]} 1-0

[Event "*** Titled Tuesday Blitz"]
[Site "Chess.com"]
[Date "2019.07.02"]
[Round "7"]
[White "Rish_97"]
[Black "RitvarsReimanis"]
[Result "1-0"]
[WhiteElo "2540"]
[BlackElo "2569"]
[TimeControl "180+2"]
[EndTime "14:30:25 PDT"]
[Termination "Rish_97 won by resignation"]

1. e4 {[%clk 0:03:01.9]} 1... c5 {[%clk 0:02:57.7]} 2. Nf3 {[%clk 0:03:02.2]}
2... Nc6 {[%clk 0:02:59.1]} 3. Bb5 {[%clk 0:02:56.8]} 3... g6 {[%clk 0:02:59.8]}
4. O-O {[%clk 0:02:57]} 4... Bg7 {[%clk 0:03:00.6]} 5. Re1 {[%clk 0:02:58.3]}
5... Nh6 {[%clk 0:03:01.4]} 6. c3 {[%clk 0:02:57.8]} 6... O-O {[%clk 0:03:02.1]}
7. d4 {[%clk 0:02:58.6]} 7... cxd4 {[%clk 0:03:04]} 8. cxd4 {[%clk 0:03:00.3]}
8... d6 {[%clk 0:03:05.6]} 9. h3 {[%clk 0:02:55]} 9... Qa5 {[%clk 0:03:06.1]}
10. Nc3 {[%clk 0:02:54.7]} 10... a6 {[%clk 0:03:06.7]} 11. Ba4 {[%clk
0:02:43.4]} 11... b5 {[%clk 0:03:06.7]} 12. Bb3 {[%clk 0:02:44.5]} 12... b4
{[%clk 0:03:07.3]} 13. Nd5 {[%clk 0:02:44.8]} 13... Qd8 {[%clk 0:03:00.4]} 14.
Bg5 {[%clk 0:02:43.4]} 14... Bd7 {[%clk 0:02:33.8]} 15. Qd2 {[%clk 0:02:41.1]}
15... Ng4 {[%clk 0:02:20.3]} 16. hxg4 {[%clk 0:02:41.2]} 16... Bxg4 {[%clk
0:02:22.2]} 17. Rac1 {[%clk 0:02:36.3]} 17... Bxf3 {[%clk 0:02:22.7]} 18. Rxc6
{[%clk 0:02:37.2]} 1-0